bitfinex-derivatives/quotes_BTCF0:USTF0_20241020
["timestamp","ask_amount","ask_price","bid_price","bid_amount"]
[1729422700950,0.3608,68444.0,68432.0,0.38735466]
[1729422701155,0.08063427,68443.0,68432.0,0.38735466]
[1729422701349,0.08063427,68443.0,68433.0,0.00838673]
[1729422703152,0.08063427,68442.0,68433.0,0.00838673]
[1729422703359,0.08063427,68441.0,68433.0,0.00838673]
[1729422703559,0.08063427,68440.0,68433.0,0.00838673]
[1729422703762,0.08063427,68439.0,68433.0,0.00838673]
[1729422703947,0.08063427,68438.0,68433.0,0.00838673]
[1729422704152,0.08063427,68437.0,68433.0,0.00838673]
[1729422704353,0.08063427,68436.0,68433.0,0.00838673]
[1729422704555,0.08063427,68435.0,68433.0,0.00838673]
[1729422704759,0.03578287,68434.0,68433.0,0.00838673]
[1729422705157,0.08063666,68445.0,68433.0,0.00838673]
[1729422705355,0.0806368,68444.0,68433.0,0.00838673]
[1729422705550,0.0806368,68443.0,68433.0,0.00838673]
[1729422705748,0.0806368,68442.0,68432.0,0.38735466]
[1729422705951,0.0806368,68441.0,68432.0,0.38735466]
[1729422706151,0.0806368,68440.0,68432.0,0.38735466]
[1729422706353,0.0806368,68439.0,68432.0,0.38735466]
[1729422706552,0.0806368,68438.0,68432.0,0.38735466]
[1729422706751,0.0806368,68437.0,68432.0,0.38735466]
[1729422706967,0.0806368,68436.0,68432.0,0.38735466]
[1729422707166,0.1225332,68446.0,68432.0,0.38735466]
[1729422707167,0.0806368,68435.0,68432.0,0.38735466]
[1729422707365,0.0806368,68434.0,68432.0,0.38735466]
[1729422707665,0.1225332,68446.0,68432.0,0.38735466]
[1729422707666,0.0806368,68433.0,68432.0,0.38735466]
[1729422707858,0.0806368,68445.0,68432.0,0.38735466]
[1729422708161,0.0806368,68444.0,68432.0,0.38735466]
[1729422708367,0.1225332,68446.0,68443.0,0.05844417]
[1729422712154,0.1225332,68446.0,68444.0,0.05844417]
[1729422715463,0.0806393,68445.0,68432.0,0.3608]
[1729422715769,0.1225332,68446.0,68432.0,0.3608]
[1729422715770,0.0806393,68444.0,68432.0,0.3608]
[1729422715959,0.0806393,68443.0,68432.0,0.3608]
[1729422716267,0.0806393,68442.0,68432.0,0.3608]
[1729422716458,0.0806393,68441.0,68432.0,0.3608]
[1729422716661,0.0806393,68440.0,68432.0,0.3608]
[1729422716967,0.0806393,68439.0,68432.0,0.3608]
[1729422717160,0.0806393,68438.0,68432.0,0.3608]
[1729422717361,0.0806393,68437.0,68432.0,0.3608]
[1729422717558,0.0806393,68436.0,68432.0,0.3608]
[1729422717759,0.0806393,68435.0,68432.0,0.3608]
[1729422717957,0.0357851,68434.0,68432.0,0.3608]
[1729422718165,0.0357851,68433.0,68432.0,0.3608]
[1729422718565,0.08063832,68445.0,68432.0,0.3608]
[1729422718773,0.0806384,68444.0,68432.0,0.3608]
[1729422719073,0.0806384,68443.0,68432.0,0.3608]
[1729422719275,0.0806384,68442.0,68432.0,0.3608]
[1729422719467,0.0806384,68441.0,68432.0,0.3608]
[1729422719676,0.0806384,68440.0,68432.0,0.3608]
[1729422719886,0.0806384,68439.0,68432.0,0.3608]
[1729422720063,0.08063779,68438.0,68432.0,0.3608]
[1729422720260,0.08063779,68437.0,68432.0,0.3608]
[1729422720559,0.08063779,68436.0,68432.0,0.3608]
[1729422720760,0.08063779,68435.0,68432.0,0.3608]
[1729422720966,0.08063779,68434.0,68432.0,0.3608]
[1729422721161,0.08063779,68433.0,68432.0,0.3608]
[1729422722370,0.0572332,68446.0,68432.0,0.3608]
[1729422722371,0.08063833,68445.0,68432.0,0.3608]
[1729422722571,0.08063833,68444.0,68432.0,0.3608]
[1729422722874,0.08063833,68443.0,68432.0,0.3608]
[1729422723173,0.08063833,68442.0,68432.0,0.3608]
[1729422723370,0.08063833,68441.0,68432.0,0.3608]
[1729422723565,0.0572332,68446.0,68437.0,0.07307955]
[1729422723874,0.0572332,68446.0,68444.0,0.04383166]
[1729422725267,0.0572332,68446.0,68445.0,0.04383166]
[1729422728570,0.0572332,68446.0,68442.0,0.05844222]
[1729422728766,0.0572332,68446.0,68445.0,0.0438462]
[1729422729769,0.0572332,68446.0,68442.0,0.05844222]
[1729422730084,0.0572332,68446.0,68438.0,0.07307955]
[1729422730085,0.0572332,68446.0,68443.0,0.05844222]
[1729422730275,0.0572332,68446.0,68442.0,0.05844222]
[1729422730480,0.0572332,68446.0,68438.0,0.07307955]
[1729422730481,0.08063853,68445.0,68432.0,0.3608]
[1729422730675,0.08063853,68444.0,68432.0,0.3608]
[1729422730871,0.08063853,68443.0,68432.0,0.3608]
[1729422731178,0.08063853,68442.0,68432.0,0.3608]
[1729422731379,0.08063853,68441.0,68432.0,0.3608]
[1729422731579,0.08063853,68440.0,68432.0,0.3608]
[1729422731771,0.08063853,68439.0,68432.0,0.3608]
[1729422732081,0.08063853,68438.0,68432.0,0.3608]
[1729422732378,0.08063853,68437.0,68432.0,0.3608]
[1729422732569,0.08063853,68436.0,68432.0,0.3608]
[1729422732768,0.08063853,68435.0,68432.0,0.3608]
[1729422732971,0.08063853,68434.0,68432.0,0.3608]
[1729422733170,0.08063853,68433.0,68432.0,0.3608]
[1729422738491,0.0572332,68446.0,68432.0,0.46920883]
[1729422738678,0.0572332,68446.0,68442.0,0.05847625]
[1729422739274,0.0572332,68446.0,68443.0,0.05847625]
[1729422739475,0.0572332,68446.0,68442.0,0.05847625]
[1729422740188,0.0572332,68446.0,68443.0,0.05847625]
[1729422740990,0.0572332,68446.0,68442.0,0.05847625]
[1729422741689,0.0572332,68446.0,68445.0,0.04386071]
[1729422742287,0.0572332,68446.0,68443.0,0.05847625]
[1729422742691,0.0572332,68446.0,68442.0,0.05847625]
[1729422742879,0.0572332,68446.0,68443.0,0.05847625]
[1729422743081,0.0572332,68446.0,68442.0,0.05847625]
[1729422743791,0.0572332,68446.0,68443.0,0.05847625]
[1729422748391,0.0572332,68446.0,68444.0,0.05847625]
[1729422749700,0.0572332,68446.0,68443.0,0.05847625]
[1729422750109,0.0572332,68446.0,68444.0,0.05847625]
[1729422751515,0.0572332,68446.0,68443.0,0.05847625]
[1729422751812,0.0572332,68446.0,68444.0,0.05847625]
[1729422752210,0.0572332,68446.0,68443.0,0.05847625]
[1729422752407,0.0572332,68446.0,68444.0,0.05847625]
[1729422753515,0.0572332,68446.0,68439.0,0.07309532]
[1729422753516,0.08063774,68445.0,68432.0,0.3608]
[1729422753815,0.08063774,68444.0,68432.0,0.3608]
[1729422754010,0.0572332,68446.0,68432.0,0.3608]
[1729422754011,0.08063774,68443.0,68432.0,0.3608]
[1729422754211,0.08063774,68442.0,68432.0,0.3608]
[1729422754417,0.08063774,68441.0,68432.0,0.3608]
[1729422754614,0.08063774,68440.0,68432.0,0.3608]
[1729422754817,0.08063774,68439.0,68432.0,0.3608]
[1729422755113,0.08063774,68438.0,68432.0,0.3608]
[1729422755417,0.08063774,68437.0,68432.0,0.3608]
[1729422755605,0.0572332,68446.0,68432.0,0.3608]
[1729422755606,0.08063774,68436.0,68432.0,0.3608]
[1729422755918,0.08063774,68435.0,68432.0,0.3608]
[1729422756216,0.08063774,68434.0,68432.0,0.3608]
[1729422756418,0.08063774,68433.0,68432.0,0.3608]
[1729422757306,0.08063774,68445.0,68432.0,0.3608]
[1729422757614,0.08063774,68444.0,68432.0,0.3608]
[1729422757806,0.08063774,68443.0,68432.0,0.3608]
[1729422758008,0.08063774,68442.0,68432.0,0.3608]
[1729422758209,0.08063774,68441.0,68432.0,0.3608]
[1729422758417,0.0572332,68446.0,68432.0,0.3608]
[1729422758418,0.08063774,68440.0,68432.0,0.3608]
[1729422758616,0.08063774,68439.0,68432.0,0.3608]
[1729422758914,0.08063774,68438.0,68432.0,0.3608]
[1729422759218,0.08063774,68437.0,68432.0,0.3608]
[1729422759510,0.08063774,68436.0,68432.0,0.3608]
[1729422759709,0.0572332,68446.0,68432.0,0.3608]
[1729422759710,0.08063774,68435.0,68432.0,0.3608]
[1729422759910,0.08063774,68434.0,68432.0,0.3608]
[1729422760109,0.08063774,68433.0,68432.0,0.3608]
[1729422760310,0.08063774,68445.0,68432.0,0.3608]
[1729422760508,0.0572332,68446.0,68443.0,0.05847625]
[1729422768508,0.0572332,68446.0,68432.0,0.3608]
[1729422768509,0.08063831,68445.0,68432.0,0.3608]
[1729422768710,0.08063831,68444.0,68432.0,0.3608]
[1729422768924,0.08063831,68443.0,68432.0,0.3608]
[1729422769227,0.08063831,68442.0,68432.0,0.3608]
[1729422769414,0.08063831,68441.0,68432.0,0.3608]
[1729422769713,0.08063831,68440.0,68432.0,0.3608]
[1729422769915,0.08063831,68439.0,68432.0,0.3608]
[1729422770114,0.08063831,68438.0,68432.0,0.3608]
[1729422770315,0.08063831,68437.0,68432.0,0.3608]
[1729422770516,0.08063831,68436.0,68432.0,0.3608]
[1729422770725,0.08063831,68435.0,68432.0,0.3608]
[1729422771027,0.08063831,68434.0,68432.0,0.3608]
[1729422771225,0.08063831,68433.0,68432.0,0.3608]
[1729422775528,0.0572332,68446.0,68432.0,0.59841721]
[1729422775718,0.0572332,68446.0,68443.0,0.05848692]
[1729422776023,0.0572332,68446.0,68442.0,0.05848692]
[1729422776230,0.0572332,68446.0,68443.0,0.05848692]
[1729422779420,0.0572332,68446.0,68442.0,0.05848692]
[1729422779818,0.0572332,68446.0,68443.0,0.05848692]
[1729422780830,0.0572332,68446.0,68444.0,0.05848692]
[1729422781032,0.0572332,68446.0,68443.0,0.05848692]
[1729422781825,0.0572332,68446.0,68444.0,0.05848692]
[1729422783933,0.0572332,68446.0,68445.0,0.05848692]
[1729422783934,0.0262332,68446.0,68445.0,0.05848692]
[1729422784137,0.08796,68449.0,68445.0,0.05848692]
[1729422784318,0.08796,68449.0,68448.0,0.04386038]
[1729422784519,0.08796,68449.0,68445.0,0.05848692]
[1729422784724,0.08796,68449.0,68446.0,0.05848692]
[1729422784919,0.08796,68449.0,68445.0,0.05848692]
[1729422785828,0.08796,68449.0,68446.0,0.05848692]
[1729422786035,0.08796,68449.0,68448.0,0.04385601]
[1729422787028,0.3608,68451.0,68448.0,0.04385601]
[1729422787237,0.38647147,68451.0,68447.0,0.04385601]
[1729422787935,0.38647147,68451.0,68448.0,0.04385601]
[1729422788135,0.38647147,68451.0,68441.0,0.0314]
[1729422788136,0.38647147,68451.0,68447.0,0.04385601]
[1729422788727,0.38647147,68451.0,68448.0,0.04385601]
[1729422788927,0.38647147,68451.0,68447.0,0.04385601]
[1729422790432,0.38647147,68451.0,68448.0,0.04385601]
[1729422790628,0.38647147,68451.0,68440.0,0.30671637]
[1729422790629,0.08063415,68450.0,68440.0,0.30671637]
[1729422790834,0.08063415,68449.0,68440.0,0.30671637]
[1729422791033,0.08063415,68448.0,68440.0,0.30671637]
[1729422791235,0.08063415,68447.0,68440.0,0.30671637]
[1729422791531,0.08063415,68446.0,68440.0,0.30671637]
[1729422791733,0.08063415,68445.0,68440.0,0.30671637]
[1729422792038,0.08063415,68444.0,68440.0,0.0315]
[1729422792237,0.08063415,68443.0,68440.0,0.0315]
[1729422792431,0.08063415,68442.0,68440.0,0.0315]
[1729422792626,0.08063415,68441.0,68440.0,0.0315]
[1729422792935,0.05240843,68450.0,68440.0,0.0315]
[1729422792936,0.03578282,68449.0,68440.0,0.0315]
[1729422793236,0.08063415,68448.0,68440.0,0.0315]
[1729422793536,0.08063415,68447.0,68440.0,0.0315]
[1729422793738,0.08063415,68446.0,68440.0,0.0315]
[1729422794040,0.08063415,68445.0,68440.0,0.0315]
[1729422794241,0.08063415,68444.0,68440.0,0.0315]
[1729422794539,0.08063415,68443.0,68440.0,0.0315]
[1729422794837,0.08063415,68442.0,68440.0,0.0315]
[1729422795027,0.08063415,68441.0,68440.0,0.0315]
[1729422795227,0.03578282,68449.0,68440.0,0.0315]
[1729422795434,0.08063658,68448.0,68440.0,0.0315]
[1729422795636,0.08063658,68447.0,68440.0,0.0315]
[1729422795834,0.08063658,68446.0,68440.0,0.0315]
[1729422796035,0.08063658,68445.0,68440.0,0.0315]
[1729422796335,0.08063658,68444.0,68440.0,0.0315]
[1729422796633,0.05240843,68450.0,68440.0,0.0315]
[1729422796634,0.08063658,68443.0,68440.0,0.0315]
[1729422796837,0.08063658,68442.0,68440.0,0.0315]
[1729422797041,0.08063658,68441.0,68440.0,0.0315]
[1729422798642,0.38647147,68451.0,68440.0,0.27077584]
[1729422798838,0.38647147,68451.0,68449.0,0.0730796]
[1729422799236,1.5,68450.0,68449.0,0.0730796]
[1729422799437,1.5,68450.0,68449.0,0.18223094]
[1729422799640,1.5,68450.0,68449.0,0.18223131]
[1729422800044,1.5,68450.0,68449.0,0.10915171]
[1729422802251,1.5,68450.0,68449.0,0.18223264]
[1729422802439,1.5,68450.0,68449.0,0.10915171]
[1729422805345,1.5,68450.0,68449.0,0.1091121]
[1729422805847,1.63304398,68450.0,68440.0,0.0315]
[1729422806038,0.13304398,68449.0,68440.0,0.0315]
[1729422810356,0.03578357,68448.0,68440.0,0.0315]
[1729422810558,0.08063585,68447.0,68440.0,0.0315]
[1729422810854,0.08063585,68446.0,68440.0,0.0315]
[1729422811053,0.08063585,68445.0,68440.0,0.0315]
[1729422811253,0.08063585,68444.0,68440.0,0.0315]
[1729422811453,0.08063585,68443.0,68440.0,0.0315]
[1729422811756,0.08063585,68442.0,68440.0,0.0315]
[1729422812055,0.08063585,68441.0,68440.0,0.0315]
[1729422812351,0.08063585,68441.0,68436.0,0.0307]
[1729422812559,0.08063585,68440.0,68436.0,0.0307]
[1729422812749,0.08063585,68439.0,68436.0,0.0307]
[1729422812950,0.08063585,68438.0,68436.0,0.0307]
[1729422813147,0.08063585,68437.0,68436.0,0.0307]
[1729422813747,0.47439147,68451.0,68436.0,0.27018597]
[1729422813958,0.47439147,68451.0,68449.0,0.07310363]
[1729422814159,0.47439147,68451.0,68448.0,0.07310363]
[1729422814661,0.47439147,68451.0,68449.0,0.18232663]
[1729422814960,0.47439147,68451.0,68449.0,0.07310363]
[1729422815350,0.47439147,68451.0,68448.0,0.07310363]
[1729422815856,0.47439147,68451.0,68449.0,0.07310363]
[1729422816354,0.47439147,68451.0,68448.0,0.07310363]
[1729422817052,0.47439147,68451.0,68449.0,0.07310363]
[1729422817253,0.47439147,68451.0,68448.0,0.07310363]
[1729422818858,0.47439147,68451.0,68449.0,0.07310363]
[1729422819267,1.5,68450.0,68449.0,0.07310363]
[1729422820057,1.5,68450.0,68449.0,0.18228377]
[1729422820259,1.5,68450.0,68449.0,0.18228465]
[1729422820466,1.5,68450.0,68449.0,0.18229406]
[1729422820664,1.63304669,68450.0,68436.0,0.0307]
[1729422820863,0.13304669,68449.0,68436.0,0.0307]
[1729422821065,0.08063664,68448.0,68436.0,0.0307]
[1729422821258,0.08063664,68447.0,68436.0,0.0307]
[1729422821460,0.08063664,68446.0,68436.0,0.0307]
[1729422822069,0.08063664,68446.0,68432.0,0.39396]
[1729422822372,0.08063664,68446.0,68434.0,0.00731924]
[1729422823374,0.44143664,68446.0,68432.0,0.03316]
[1729422823563,0.08063664,68445.0,68432.0,0.0312]
[1729422825268,0.08063943,68444.0,68432.0,0.0312]
[1729422825573,0.08063943,68443.0,68432.0,0.0312]
[1729422825770,0.08063943,68442.0,68432.0,0.0312]
[1729422825973,0.08063943,68441.0,68432.0,0.0312]
[1729422826267,0.08063943,68440.0,68432.0,0.0312]
[1729422826473,0.08063943,68439.0,68432.0,0.0312]
[1729422826674,0.08063943,68438.0,68432.0,0.0312]
[1729422826870,0.03578516,68437.0,68432.0,0.0312]
[1729422827071,0.03578516,68436.0,68432.0,0.0312]
[1729422827275,0.03578516,68435.0,68432.0,0.0312]
[1729422827465,0.03578516,68434.0,68432.0,0.0312]
[1729422828678,0.4233,68446.0,68433.0,0.39945021]
[1729422828872,0.4233,68446.0,68442.0,0.08769494]
[1729422829171,0.4233,68446.0,68443.0,0.10925563]
[1729422829375,0.4233,68446.0,68444.0,0.10925563]
[1729422829577,0.4233,68446.0,68442.0,0.08769494]
[1729422829578,0.4233,68446.0,68445.0,0.10925563]
[1729422829974,0.4233,68446.0,68442.0,0.08769494]
[1729422830168,0.4233,68446.0,68443.0,0.10925434]
[1729422830370,0.4233,68446.0,68444.0,0.10925434]
[1729422830571,0.4233,68446.0,68445.0,0.10925434]
[1729422843696,0.50394042,68446.0,68433.0,0.031]
[1729422843890,0.08064042,68445.0,68433.0,0.031]
[1729422844079,0.08064042,68444.0,68433.0,0.031]
[1729422844278,0.08064042,68443.0,68433.0,0.031]
[1729422844489,0.08064042,68442.0,68433.0,0.031]
[1729422844683,0.4233,68446.0,68433.0,0.031]
[1729422844684,0.08064042,68441.0,68433.0,0.031]
[1729422844887,0.0357856,68440.0,68433.0,0.031]
[1729422845085,0.0357856,68439.0,68433.0,0.031]
[1729422845283,0.0357856,68438.0,68433.0,0.031]
[1729422845586,0.4233,68446.0,68433.0,0.031]
[1729422845587,0.0357856,68437.0,68433.0,0.031]
[1729422845787,0.0357856,68436.0,68433.0,0.031]
[1729422845986,0.0357856,68435.0,68433.0,0.031]
[1729422846287,0.4233,68446.0,68433.0,0.031]
[1729422846487,0.08064042,68445.0,68433.0,0.031]
[1729422846688,0.08064042,68444.0,68433.0,0.031]
[1729422846888,0.08064042,68443.0,68433.0,0.031]
[1729422847082,0.0357856,68442.0,68433.0,0.031]
[1729422847283,0.0357856,68441.0,68433.0,0.031]
[1729422847482,0.0357856,68440.0,68433.0,0.031]
[1729422847792,0.0357856,68439.0,68433.0,0.031]
[1729422847988,0.0357856,68438.0,68433.0,0.031]
[1729422848293,0.0357856,68437.0,68433.0,0.031]
[1729422848487,0.0357856,68436.0,68433.0,0.031]
[1729422848683,0.4233,68446.0,68433.0,0.031]
[1729422848885,0.08063866,68445.0,68433.0,0.031]
[1729422849184,0.08063866,68444.0,68433.0,0.031]
[1729422849384,0.03578482,68443.0,68433.0,0.031]
[1729422849583,0.3608,68440.0,68433.0,0.031]
[1729422849784,0.03578482,68439.0,68433.0,0.031]
[1729422850091,0.03578482,68438.0,68433.0,0.031]
[1729422850291,0.4233,68446.0,68433.0,0.031]
[1729422850292,0.03578482,68437.0,68433.0,0.031]
[1729422850586,0.03578482,68436.0,68433.0,0.031]
[1729422850790,0.4233,68446.0,68434.0,0.23967742]
[1729422850992,0.4233,68446.0,68442.0,0.08772489]
[1729422851293,0.4233,68446.0,68443.0,0.1093438]
[1729422851589,0.4233,68446.0,68444.0,0.1093438]
[1729422851790,0.4233,68446.0,68445.0,0.1093438]
[1729422853589,0.4233,68446.0,68445.0,0.10937993]
[1729422854385,0.51122,68446.0,68445.0,0.10937993]
[1729422858480,0.51122,68446.0,68445.0,0.1093498]
[1729422858681,0.59186053,68446.0,68433.0,0.031]
[1729422858885,0.08064053,68445.0,68433.0,0.031]
[1729422859092,0.08064053,68444.0,68433.0,0.031]
[1729422859289,0.08064053,68443.0,68433.0,0.031]
[1729422859599,0.08064053,68442.0,68433.0,0.031]
[1729422859786,0.51122,68446.0,68433.0,0.031]
[1729422862495,0.03578569,68445.0,68433.0,0.031]
[1729422862793,0.08064062,68445.0,68433.0,0.031]
[1729422863797,0.3608,68443.0,68433.0,0.031]
[1729422867998,0.3608,68443.0,68434.0,0.39108557]
[1729422868299,0.3608,68443.0,68434.0,0.23972935]
[1729422870609,0.38774966,68443.0,68434.0,0.23972935]
[1729422871703,0.38774966,68443.0,68433.0,0.031]
[1729422873214,0.38774966,68443.0,68435.0,0.10235196]
[1729422873401,0.38774966,68443.0,68436.0,0.23977886]
[1729422873603,0.38774966,68443.0,68437.0,0.23977886]
[1729422873806,0.38774966,68443.0,68438.0,0.23977886]
[1729422874006,0.38774966,68443.0,68433.0,0.031]
[1729422874007,0.03578588,68442.0,68433.0,0.031]
[1729422874206,0.38774966,68443.0,68433.0,0.031]
[1729422874510,0.03578588,68442.0,68433.0,0.031]
[1729422874708,0.03578588,68441.0,68433.0,0.031]
[1729422874915,0.38774966,68443.0,68433.0,0.031]
[1729422875109,0.03578588,68442.0,68433.0,0.031]
[1729422875311,0.03578588,68441.0,68433.0,0.031]
[1729422875510,0.38774966,68443.0,68433.0,0.031]
[1729422875707,0.03578545,68442.0,68433.0,0.031]
[1729422875913,0.03578545,68441.0,68433.0,0.031]
[1729422876110,0.03578545,68440.0,68433.0,0.031]
[1729422876314,0.38774966,68443.0,68433.0,0.031]
[1729422876510,0.03578608,68442.0,68433.0,0.031]
[1729422876712,0.03578608,68441.0,68433.0,0.031]
[1729422876903,0.03578608,68440.0,68433.0,0.031]
[1729422877103,0.38774966,68443.0,68433.0,0.031]
[1729422877309,0.03578596,68442.0,68433.0,0.031]
[1729422877618,0.03578596,68441.0,68433.0,0.031]
[1729422877813,0.03578596,68440.0,68433.0,0.031]
[1729422878014,0.38774966,68443.0,68433.0,0.031]
[1729422878214,0.03578577,68442.0,68433.0,0.031]
[1729422878416,0.03578577,68441.0,68433.0,0.031]
[1729422878617,0.03578577,68440.0,68433.0,0.031]
[1729422878918,0.38774966,68443.0,68433.0,0.031]
[1729422879118,0.03578607,68442.0,68433.0,0.031]
[1729422879320,0.03578607,68441.0,68433.0,0.031]
[1729422879522,0.03578607,68440.0,68433.0,0.031]
[1729422879814,0.03578607,68439.0,68433.0,0.031]
[1729422880013,0.38774966,68443.0,68433.0,0.031]
[1729422880229,0.0357859,68442.0,68433.0,0.031]
[1729422880412,0.0357859,68441.0,68432.0,0.0312]
[1729422880718,0.0357859,68440.0,68432.0,0.0312]
[1729422880921,0.0357859,68439.0,68432.0,0.0312]
[1729422881221,0.38774966,68443.0,68434.0,0.10235196]
[1729422881418,0.38774966,68443.0,68435.0,0.2398386]
[1729422881725,0.38774966,68443.0,68442.0,0.08773836]
[1729422881919,0.38774966,68443.0,68442.0,0.10941733]
[1729422885114,0.38774966,68443.0,68442.0,0.19715493]
[1729422888008,0.38774966,68443.0,68442.0,0.10941733]
[1729422888209,0.38774966,68443.0,68442.0,0.19715335]
[1729422888414,0.38774966,68443.0,68442.0,0.10941733]
[1729422888715,0.38774966,68443.0,68442.0,0.19715409]
[1729422888921,0.38774966,68443.0,68442.0,0.10941733]
[1729422889218,0.38774966,68443.0,68432.0,0.0312]
[1729422889219,0.46838938,68443.0,68432.0,0.0312]
[1729422889517,0.08063972,68442.0,68432.0,0.0312]
[1729422895010,0.03578529,68441.0,68432.0,0.0312]
[1729422895207,0.38774966,68443.0,68432.0,0.0312]
[1729422895208,0.03578529,68440.0,68432.0,0.0312]
[1729422895412,0.03578529,68439.0,68432.0,0.0312]
[1729422895619,0.03578529,68438.0,68432.0,0.0312]
[1729422895918,0.03578529,68437.0,68432.0,0.0312]
[1729422896117,0.03578529,68436.0,68432.0,0.0312]
[1729422896423,0.35119016,68443.0,68434.0,0.11697367]
[1729422896620,0.35119016,68443.0,68438.0,0.10235262]
[1729422896921,0.35119016,68443.0,68439.0,0.23960375]
[1729422897122,0.35119016,68443.0,68440.0,0.23964075]
[1729422897322,0.35119016,68443.0,68441.0,0.23964075]
[1729422897622,0.35119016,68443.0,68442.0,0.23964075]
[1729422899422,0.35119016,68443.0,68442.0,0.10932707]
[1729422899624,0.35119016,68443.0,68442.0,0.23933796]
[1729422900125,0.35119016,68443.0,68442.0,0.10932707]
[1729422900316,0.35119016,68443.0,68442.0,0.2393461]
[1729422900915,0.35119016,68443.0,68442.0,0.10932707]
[1729422901119,0.35119016,68443.0,68442.0,0.23934804]
[1729422901526,0.35119016,68443.0,68442.0,0.23935484]
[1729422901726,0.35119016,68443.0,68442.0,0.10932707]
[1729422902122,0.35119016,68443.0,68442.0,0.23934584]
[1729422904324,0.35119016,68443.0,68442.0,0.10932707]
[1729422907331,0.35119016,68443.0,68442.0,0.23921739]
[1729422910235,0.3242405,68443.0,68442.0,0.23921739]
[1729422910536,0.3242405,68443.0,68442.0,0.23870545]
[1729422911332,0.3242405,68443.0,68438.0,0.0314]
[1729422911333,0.36002404,68443.0,68438.0,0.0314]
[1729422911533,0.03578354,68442.0,68438.0,0.0314]
[1729422911833,0.03578354,68441.0,68439.0,0.00625178]
[1729422912034,0.03578354,68440.0,68439.0,0.00625178]
[1729422912926,0.44872,68452.0,68439.0,0.00625178]
[1729422913127,0.08063393,68451.0,68439.0,0.00625178]
[1729422913322,0.08063393,68450.0,68439.0,0.00625178]
[1729422913529,0.08063393,68449.0,68439.0,0.00625178]
[1729422913831,0.08063393,68448.0,68439.0,0.00625178]
[1729422914034,0.03578272,68447.0,68439.0,0.00625178]
[1729422914235,0.03578272,68446.0,68439.0,0.00625178]
[1729422914532,0.03578272,68445.0,68439.0,0.00625178]
[1729422914834,0.03578272,68444.0,68439.0,0.00625178]
[1729422915028,0.03578272,68443.0,68439.0,0.00625178]
[1729422915223,0.03578272,68442.0,68439.0,0.00625178]
[1729422915424,0.03578272,68441.0,68439.0,0.00625178]
[1729422915728,0.4745186,68452.0,68439.0,0.00625178]
[1729422916033,0.44143452,68451.0,68439.0,0.00625178]
[1729422916237,0.08063452,68450.0,68439.0,0.00625178]
[1729422918334,0.3608,68451.0,68449.0,0.07308516]
[1729422922231,1.5,68450.0,68449.0,0.07308516]
[1729422922438,1.5,68450.0,68449.0,0.1818584]
[1729422925344,1.5,68450.0,68449.0,0.1818273]
[1729422925640,1.5,68450.0,68449.0,0.18180593]
[1729422925829,1.5,68450.0,68449.0,0.07304875]
[1729422926436,1.5,68450.0,68448.0,0.05844024]
[1729422927637,1.5,68450.0,68449.0,0.05844024]
[1729422927942,1.5,68450.0,68448.0,0.05844024]
[1729422928634,1.5,68450.0,68449.0,0.05844024]
[1729422932138,0.3608,68451.0,68449.0,0.05844024]
[1729422932337,0.3608,68451.0,68450.0,0.05844024]
[1729422932541,0.3608,68451.0,68446.0,0.07304875]
[1729422932849,0.08792,68455.0,68450.0,0.07304875]
[1729422933049,0.0332,68456.0,68450.0,0.07304875]
[1729422933247,0.0332,68456.0,68455.0,0.0584478]
[1729422933446,0.0332,68456.0,68446.0,0.0308]
[1729422933649,0.08062698,68455.0,68446.0,0.0308]
[1729422933946,0.08062698,68454.0,68446.0,0.0308]
[1729422934149,0.03577964,68453.0,68446.0,0.0308]
[1729422934355,0.03577964,68452.0,68446.0,0.0308]
[1729422934541,0.03577964,68451.0,68446.0,0.0308]
[1729422934739,0.03577964,68450.0,68446.0,0.0308]
[1729422935040,0.03577964,68449.0,68446.0,0.0308]
[1729422935244,0.03577964,68448.0,68446.0,0.0308]
[1729422935440,0.03577964,68447.0,68446.0,0.0308]
[1729422940049,0.03577879,68447.0,68446.0,0.0308]
[1729422941454,0.40001665,68456.0,68446.0,0.10384875]
[1729422941647,0.40001665,68456.0,68454.0,0.04380685]
[1729422941848,0.42578239,68456.0,68454.0,0.04380685]
[1729422943149,0.42578239,68456.0,68452.0,0.05840913]
[1729422943344,0.42578239,68456.0,68453.0,0.05840913]
[1729422943547,0.42578239,68456.0,68452.0,0.05840913]
[1729422944446,0.42578239,68456.0,68455.0,0.04379734]
[1729422946755,0.42578239,68456.0,68454.0,0.04379734]
[1729422948444,0.13302332,68455.0,68451.0,0.39552]
[1729422948643,0.08062248,68454.0,68451.0,0.3936]
[1729422948850,0.08062248,68453.0,68451.0,0.3936]
[1729422949052,0.42578239,68456.0,68451.0,0.3936]
[1729422949053,0.08062248,68452.0,68451.0,0.3936]
[1729422949853,0.08062144,68452.0,68451.0,0.3936]
[1729422950559,0.08062144,68452.0,68451.0,0.0328]
[1729422954855,0.08062086,68452.0,68451.0,0.0328]
[1729422956358,0.02628498,68457.0,68451.0,0.0328]
[1729422956563,0.3608,68462.0,68456.0,0.043783]
[1729422958165,0.3608,68462.0,68457.0,0.043783]
[1729422958369,0.38740077,68462.0,68457.0,0.043783]
[1729422959168,0.38740077,68462.0,68458.0,0.043783]
[1729422962662,0.38740077,68462.0,68459.0,0.043783]
[1729422962868,0.38740077,68462.0,68455.0,0.05837733]
[1729422962869,0.38740077,68462.0,68458.0,0.043783]
[1729422963568,0.08062041,68461.0,68453.0,0.02651656]
[1729422963869,0.08062041,68460.0,68451.0,0.0328]
[1729422964065,0.08062041,68459.0,68452.0,0.3608]
[1729422964261,0.08062041,68458.0,68452.0,0.3608]
[1729422964462,0.08062041,68457.0,68452.0,0.3608]
[1729422964662,0.08062041,68456.0,68452.0,0.3608]
[1729422964863,0.08062041,68455.0,68452.0,0.3608]
[1729422965063,0.08062041,68454.0,68452.0,0.3608]
[1729422965264,0.08062041,68453.0,68452.0,0.3608]
[1729422965665,0.08062041,68453.0,68452.0,0.79908]
[1729422971472,0.38740077,68462.0,68452.0,0.98041932]
[1729422971672,0.38740077,68462.0,68460.0,0.04383661]
[1729422975579,0.38740077,68462.0,68459.0,0.05844881]
[1729422975782,0.38740077,68462.0,68452.0,0.36272]
[1729422975783,0.38740077,68462.0,68456.0,0.07304875]
[1729422975981,0.38740077,68462.0,68457.0,0.07304875]
[1729422976482,0.38740077,68462.0,68456.0,0.07304875]